bitfinex/quotes_ETHUSD_20220220
["timestamp","ask_amount","ask_price","bid_price","bid_amount"]
[1645326014826,0.89415602,2717.6,2717.4,2.3731271]
[1645326015026,0.3,2717.5,2717.4,0.531]
[1645326015528,1.3,2717.5,2717.2,2.8531]
[1645326015729,0.831,2717.5,2717.2,0.00307514]
[1645326015926,1.831,2717.5,2717.2,0.00307514]
[1645326016527,1.831,2717.5,2717.1,1449.33994389]
[1645326016730,1.3,2717.5,2717.1,1449.33994389]
[1645326016928,0.7864,2717.5,2717.2,0.00307517]
[1645326017328,1.3174,2717.5,2717.2,0.00307517]
[1645326017727,1.3174,2717.5,2717.1,1449.33994389]
[1645326018128,1.3174,2717.5,2717.2,0.00307517]
[1645326018569,0.92123,2717.4,2717.2,0.00307517]
[1645326018768,1.22123,2717.4,2717.2,0.00307517]
[1645326018971,1.22123,2717.4,2717.1,1450.26121079]
[1645326019368,1.22123,2717.4,2717.2,0.00307523]
[1645326019775,0.59415602,2717.3,2717.2,0.00307523]
[1645326020176,0.89415602,2717.3,2717.1,1449.33994389]
[1645326020472,0.89415602,2717.3,2717.1,1450.26424547]
[1645326021472,0.89415602,2717.3,2717.2,3.70247051]
[1645326021673,0.89415602,2717.3,2717.1,1450.26424553]
[1645326022324,0.89415602,2717.3,2717.2,3.70247051]
[1645326023522,0.89415602,2717.3,2717.1,1450.26424553]
[1645326023722,0.89415602,2717.3,2717.1,1450.26117019]
[1645326024122,0.89415602,2717.3,2717.1,1450.26424547]
[1645326024523,0.59415602,2717.2,2717.1,1450.26424547]
[1645326024929,0.59415602,2717.2,2717.1,1450.26117019]
[1645326025225,1.18831204,2717.2,2717.1,1450.26117019]
[1645326025424,1.18831204,2717.2,2717.1,1453.9636407]
[1645326026074,0.92123,2717.4,2717.2,21.5]
[1645326026470,1.22123,2717.4,2717.2,21.5]
[1645326026672,1.0,2717.5,2717.3,8.56711109]
[1645326026870,1.47823154,2717.8,2717.4,4.86464058]
[1645326027070,2.07823154,2717.8,2717.4,1.8422523]
[1645326027270,2.07823154,2717.8,2717.4,5.54472281]
[1645326027669,2.07823154,2717.8,2717.4,1.8422523]
[1645326027870,2.07823154,2717.8,2717.4,5.54472281]
[1645326028870,1.84235,2717.7,2717.4,5.54472281]
[1645326029272,1.0,2717.7,2717.5,4.86464058]
[1645326029720,2.07823154,2717.8,2717.5,3.70247051]
[1645326030127,2.07823154,2717.8,2717.4,3.70247051]
[1645326030321,3.07823154,2717.8,2717.4,3.70247051]
[1645326031125,3.07823154,2717.8,2717.4,4.62361501]
[1645326032726,3.07823154,2717.8,2717.4,0.9211445]
[1645326032924,3.07823154,2717.8,2717.7,3.70247051]
[1645326033326,2.15717154,2717.8,2717.2,21.50307514]
[1645326033575,2.15717154,2717.8,2717.3,4.86464058]
[1645326033775,1.15717154,2717.8,2717.7,3.70247051]
[1645326033976,1.15717154,2717.8,2717.3,4.86464058]
[1645326033977,1.15717154,2717.8,2717.5,3.70247051]
[1645326034175,1.15717154,2717.8,2717.7,3.70247051]
[1645326034376,2.07839154,2717.8,2717.7,3.70247051]
[1645326034776,3.07839154,2717.8,2717.7,3.70247051]
[1645326038620,2.15717154,2717.8,2717.7,3.70247051]
[1645326038820,1.15717154,2717.8,2717.7,3.70247051]
[1645326039019,1.15717154,2717.8,2717.7,8.56711109]
[1645326039219,1.15717154,2717.8,2717.7,3.70247051]
[1645326039920,1.15717154,2717.8,2717.7,8.56711109]
[1645326040120,1.15717154,2717.8,2717.7,3.70247051]
[1645326040972,2.15717154,2717.8,2717.7,3.70247051]
[1645326041377,1.15717154,2717.8,2717.7,3.70247051]
[1645326042370,1.15717154,2717.8,2717.7,8.56711109]
[1645326042577,0.55717154,2717.8,2717.7,8.56711109]
[1645326042772,0.02617154,2717.8,2717.7,8.56711109]
[1645326043774,0.02617154,2717.8,2717.7,3.70247051]
[1645326044373,0.04458936,2717.9,2717.8,6.5]
[1645326044574,0.04458936,2717.9,2717.8,11.36464058]
[1645326044823,0.147299,2718.9,2717.9,0.0211]
[1645326045021,0.55682674,2718.8,2718.4,3.70247051]
[1645326045221,15.48,2720.0,2718.7,3.70247051]
[1645326045420,3.5,2719.8,2719.5,3.70247051]
[1645326045623,3.5,2719.8,2719.3,3.70247051]
[1645326045824,1.84098,2719.8,2719.3,3.70247051]
[1645326046219,0.531,2719.7,2719.3,3.70247051]
[1645326046420,0.92064,2719.5,2719.1,3.70247051]
[1645326046623,0.531,2719.4,2719.1,3.70247051]
[1645326046819,0.531,2719.4,2718.8,2.9477]
[1645326047120,1.84127,2719.3,2718.9,3.70247051]
[1645326047317,0.3,2719.2,2718.9,3.70247051]
[1645326047521,0.3,2719.2,2718.8,2.9477]
[1645326047727,0.3,2719.2,2719.1,3.70247051]
[1645326047923,1.22063,2719.2,2719.1,3.70247051]
[1645326048326,1.3,2719.2,2719.1,3.70247051]
[1645326048780,0.3,2719.2,2719.1,3.70247051]
[1645326049176,0.04225735,2719.2,2719.1,3.70247051]
[1645326053018,0.04563367,2719.3,2719.1,3.70247051]
[1645326053821,0.04225735,2719.3,2719.1,3.70247051]
[1645326054020,0.04564187,2719.3,2719.1,3.70247051]
[1645326054620,0.04564187,2719.3,2719.1,8.45465011]
[1645326055123,0.21049641,2720.4,2719.1,4.62283051]
[1645326055124,0.92021,2720.3,2719.1,4.62283051]
[1645326055432,0.0182,2720.4,2720.2,3.70247051]
[1645326055622,0.0182,2720.4,2720.2,4.60897051]
[1645326056074,0.92017,2720.3,2720.2,4.60897051]
[1645326056675,0.92017,2720.3,2720.2,3.70247051]
[1645326056872,0.92017,2720.3,2720.1,3.70247051]
[1645326057071,1.00628616,2720.3,2720.0,3.70247051]
[1645326057273,1.00628616,2720.3,2719.8,3.70247051]
[1645326057474,0.92063,2720.0,2719.4,1.2037]
[1645326057675,0.531,2719.9,2719.1,3.70247051]
[1645326057874,1.84116,2719.8,2719.1,3.70247051]
[1645326058075,2.37216,2719.8,2719.7,3.70247051]
[1645326058272,3.05827616,2719.8,2719.0,7.3771]
[1645326058478,6.71372616,2719.8,2719.2,3.70247051]
[1645326058672,1.08611616,2719.7,2719.0,7.3771]
[1645326058876,0.00338326,2719.5,2719.3,3.70247051]
[1645326059075,0.00338326,2719.5,2719.3,4.62284341]
[1645326059821,1.15385856,2720.3,2719.3,4.62284341]
[1645326060020,0.00338326,2719.5,2719.3,0.9203729]
[1645326060222,0.00338326,2719.5,2719.4,3.70247051]
[1645326061021,0.92034,2719.8,2719.4,3.70247051]
[1645326061220,0.92034,2719.8,2719.7,3.70247051]
[1645326062225,0.92034,2719.8,2719.2,3.70247051]
[1645326062226,1.52034,2719.8,2719.2,3.70247051]
[1645326062429,0.92059,2719.4,2719.2,3.70247051]
[1645326062624,0.92059,2719.4,2718.8,2.9477]
[1645326062625,0.531,2719.3,2718.8,2.9477]
[1645326063124,0.831,2719.3,2718.8,2.9477]
[1645326063570,1.84139,2719.2,2718.8,2.9477]
[1645326063771,0.00338354,2719.2,2719.1,3.70247051]
[1645326064169,0.00338354,2719.2,2718.8,2.9477]
[1645326064369,0.00338354,2719.2,2719.0,3.70247051]
[1645326064571,1.22069,2719.3,2719.0,3.70247051]
[1645326064769,2.22069,2719.3,2719.2,3.70247051]
[1645326064969,1.22069,2719.3,2719.2,3.70247051]
[1645326065170,2.22069,2719.3,2719.2,3.70247051]
[1645326065970,2.22069,2719.3,2718.8,2.9477]
[1645326066476,2.22069,2719.3,2719.0,3.70247051]
[1645326066873,2.22069,2719.3,2718.8,2.9477]
[1645326067074,2.17069,2719.3,2718.8,2.9477]
[1645326067333,2.17407348,2719.3,2719.1,3.70247051]
[1645326068329,2.17069,2719.3,2719.1,3.70247051]
[1645326068530,2.17407347,2719.3,2719.1,3.70247051]
[1645326069532,2.17069,2719.3,2719.1,3.70247051]
[1645326069733,2.17407347,2719.3,2719.1,3.70247051]
[1645326070432,2.70507347,2719.3,2719.1,3.70247051]
[1645326070637,2.70507347,2719.3,2717.1,1449.33994389]
[1645326070638,3.68296011,2718.6,2717.1,1449.33994389]
[1645326070835,3.68296011,2718.6,2717.1,1446.65105761]
[1645326070836,5.0,2717.5,2717.1,1446.65105761]
[1645326071106,1.941,2717.5,2717.1,1442.29760503]
[1645326071296,0.3537,2717.7,2717.2,21.5]
[1645326071494,0.531,2717.6,2717.3,6.5]
[1645326071697,5.91769791,2717.4,2717.3,6.5]
[1645326071894,0.92121,2717.5,2717.3,2.79753]
[1645326072091,1.45221,2717.5,2717.3,2.79753]
[1645326072292,1.45221,2717.5,2717.3,2.5962475]
[1645326072491,1.45221,2717.5,2717.3,2.1246226]
[1645326072696,1.84246,2717.4,2717.3,1.57661671]
[1645326073093,1.74246,2717.4,2717.2,21.5]
[1645326073297,3.34246,2717.4,2717.1,1439.62332307]
[1645326073893,3.34246,2717.4,2717.1,1434.09525307]
[1645326075120,0.531,2717.3,2717.1,1434.09525307]
[1645326075320,0.531,2717.3,2717.1,1428.56713307]
[1645326075727,0.531,2717.3,2717.1,1423.04137562]
[1645326075926,24.045397,2717.2,2717.1,1422.11975562]
[1645326076124,23.385997,2717.2,2717.1,1416.58928562]
[1645326076324,32.85451316,2717.2,2717.1,1410.51910562]
[1645326076525,28.656687,2717.2,2717.1,1410.51910562]
[1645326076725,26.061778,2717.2,2717.1,1404.98637307]
[1645326076928,14.158944,2717.2,2717.1,1404.98637307]
[1645326077126,14.158944,2717.2,2717.1,1403.98637307]
[1645326077424,16.067847,2717.2,2717.1,1397.90850307]
[1645326077625,16.072735,2717.2,2717.1,1397.90850307]
[1645326077926,17.254188,2717.2,2717.1,1390.74696307]
[1645326078127,17.33541616,2717.2,2717.1,1390.74696307]
[1645326078326,36.64388016,2717.2,2717.1,1379.68563307]
[1645326078573,32.26814916,2717.2,2717.1,1379.68563307]
[1645326078773,32.26414916,2717.2,2717.1,1379.68563307]
[1645326078974,32.26734916,2717.2,2717.1,1374.15553307]
[1645326079175,32.26814916,2717.2,2717.1,1374.15553307]
[1645326079372,32.26814916,2717.2,2717.1,1368.62526307]
[1645326079373,32.26894916,2717.2,2717.1,1368.62526307]
[1645326079577,30.97314916,2717.2,2717.1,1367.70357307]
[1645326079772,34.02394916,2717.2,2717.1,1367.70357307]
[1645326079971,32.47314916,2717.2,2717.1,1362.17311307]
[1645326080175,32.47394916,2717.2,2717.1,1362.17311307]
[1645326080378,37.216433,2717.2,2717.1,1351.22002708]
[1645326080577,50.058459,2717.2,2717.1,1351.19056875]
[1645326080775,53.383913,2717.2,2717.1,1351.19056875]
[1645326080973,68.80190916,2717.2,2717.1,1341.78514841]
[1645326081182,68.80190916,2717.2,2717.1,1220.59652437]
[1645326081183,127.31654312,2717.2,2717.1,1220.59652437]
[1645326081374,45.00882846,2717.2,2717.1,1214.59689207]
[1645326081575,106.27336246,2717.2,2717.1,1196.15906207]
[1645326081775,86.23974864,2717.2,2717.1,1196.0591395]
[1645326081974,73.94057468,2717.2,2717.1,1196.0591395]
[1645326082227,72.23870916,2717.2,2717.1,1189.6072995]
[1645326082425,77.61177216,2717.2,2717.1,1189.0672995]
[1645326082623,82.00983768,2717.2,2717.1,1183.5370295]
[1645326082826,91.37817216,2717.2,2717.1,1183.5370295]
[1645326083127,122.80490768,2717.2,2717.1,1176.1627195]
[1645326083323,122.80490768,2717.2,2717.1,1176.06279693]
[1645326083525,125.90867768,2717.2,2717.1,1175.33479693]
[1645326083724,93.91761616,2717.2,2717.1,1169.80399693]
[1645326083925,117.54081316,2717.2,2717.1,1168.88219693]
[1645326084225,117.54081316,2717.2,2717.1,1163.35158693]
[1645326084226,117.53281316,2717.2,2717.1,1163.35158693]
[1645326084625,120.89907768,2717.2,2717.1,1157.82082693]
[1645326084830,120.89987768,2717.2,2717.1,1157.82082693]
[1645326085025,119.89667768,2717.2,2717.1,1157.82082693]
[1645326085224,108.42187768,2717.2,2717.1,1152.29000693]
[1645326085428,101.01501816,2717.2,2717.1,1151.36820693]
[1645326085625,72.98937975,2717.2,2717.1,1151.36820693]
[1645326085827,70.19538075,2717.2,2717.1,1145.83805693]
[1645326086080,70.19698075,2717.2,2717.1,1145.83805693]
[1645326086279,71.19778075,2717.2,2717.1,1140.30786693]
[1645326086479,69.44801575,2717.2,2717.1,1140.30786693]
[1645326086681,74.53241875,2717.2,2717.1,1140.30786693]
[1645326086876,98.85212075,2717.2,2717.1,1134.77765693]
[1645326087077,98.61662875,2717.2,2717.1,1134.63017431]
[1645326087279,75.73873675,2717.2,2717.1,1129.09993431]
[1645326087481,61.62509775,2717.2,2717.1,1129.09993431]
[1645326087680,61.96026175,2717.2,2717.1,1129.09993431]
[1645326087878,71.43186575,2717.2,2717.1,1123.56972431]
[1645326088081,71.43346575,2717.2,2717.1,1123.56972431]
[1645326088278,81.48380275,2717.2,2717.1,1105.57994231]
[1645326088479,82.60924775,2717.2,2717.1,1092.60913985]
[1645326088678,82.60524775,2717.2,2717.1,1092.60913985]
[1645326088878,79.93084775,2717.2,2717.1,1087.07854985]
[1645326089078,74.51144875,2717.2,2717.1,1087.07854985]
[1645326089279,77.79807075,2717.2,2717.1,1087.07854985]
[1645326089479,77.79807075,2717.2,2717.1,1081.54808985]
[1645326089480,74.75859975,2717.2,2717.1,1081.54808985]
[1645326089731,75.49219975,2717.2,2717.1,1081.54808985]
[1645326090037,75.49299975,2717.2,2717.1,1076.01753985]
[1645326090230,76.73760575,2717.2,2717.1,1076.01753985]
[1645326090431,76.74560575,2717.2,2717.1,1070.48698985]
[1645326090631,83.14980575,2717.2,2717.1,1067.50899955]
[1645326090831,76.37941175,2717.2,2717.1,1067.50899955]
[1645326091034,76.50427075,2717.2,2717.1,1061.97841955]
[1645326091233,84.20105375,2717.2,2717.1,1061.97841955]
[1645326091433,91.57188675,2717.2,2717.1,1061.97841955]
[1645326091631,68.92505275,2717.2,2717.1,1056.44789955]
[1645326091832,68.92580875,2717.2,2717.1,1056.44789955]
[1645326092031,68.89900975,2717.2,2717.1,1056.44789955]
[1645326092232,68.90060975,2717.2,2717.1,1050.91745955]
[1645326092432,68.89820975,2717.2,2717.1,1050.91745955]
[1645326092636,64.23356475,2717.2,2717.1,1045.38694955]
[1645326092833,98.47578175,2717.2,2717.1,1045.38694955]
[1645326093034,94.97338175,2717.2,2717.1,1044.3105636]
[1645326093232,97.02665675,2717.2,2717.1,1038.7800136]
[1645326093490,96.90547375,2717.2,2717.1,1038.7800136]
[1645326093692,99.99547275,2717.2,2717.1,1033.2493736]
[1645326093892,114.16458975,2717.2,2717.1,1033.201294]
[1645326094192,126.31952171,2717.2,2717.1,1026.748454]
[1645326094390,110.15112171,2717.2,2717.1,1026.748454]
[1645326094594,37.32768311,2717.2,2717.1,1026.748454]
[1645326094790,42.22910559,2717.2,2717.1,1021.218884]
[1645326094994,53.88572175,2717.2,2717.1,1021.218884]
[1645326095195,55.42072075,2717.2,2717.1,1015.625794]
[1645326095394,63.9260345,2717.2,2717.1,1015.625794]
[1645326095596,69.3839545,2717.2,2717.1,1015.608209]
[1645326095891,61.07223775,2717.2,2717.1,1008.53942236]
[1645326096089,57.20671575,2717.2,2717.1,1008.53942236]
[1645326096292,78.48916775,2717.2,2717.1,1003.00929236]
[1645326096494,56.39041575,2717.2,2717.1,1003.00929236]
[1645326096693,78.32377275,2717.2,2717.1,1003.00929236]
[1645326096995,78.32377275,2717.2,2717.1,969.14067924]
[1645326096996,99.35611749,2717.2,2717.1,969.14067924]
[1645326097258,144.94373998,2717.2,2717.1,819.16755635]
[1645326097455,144.94373998,2717.2,2717.1,450.37003959]
[1645326097456,116.25016738,2717.2,2717.1,450.37003959]
[1645326097653,116.25256738,2717.2,2717.1,411.82928812]
[1645326097859,192.91087914,2717.2,2717.1,403.88011726]
[1645326098054,195.68003898,2717.2,2717.1,403.0257011]
[1645326098260,199.49855314,2717.2,2717.1,378.03069449]
[1645326098456,206.56575614,2717.2,2717.1,375.19581725]
[1645326098656,207.64025014,2717.2,2717.1,352.52021564]
[1645326098857,182.25652909,2717.2,2717.1,346.00577564]
[1645326099059,213.30280033,2717.2,2717.1,263.75209067]
[1645326099258,162.99993007,2717.2,2717.1,107.92914515]
[1645326099456,162.99993007,2717.2,2717.1,102.74773409]
[1645326099457,202.76529698,2717.2,2717.1,102.74773409]
[1645326099657,192.76209698,2717.2,2717.1,58.49009583]
[1645326099857,174.21915183,2717.2,2717.1,26.12897683]
[1645326100056,170.62183567,2717.2,2717.1,25.22014451]
[1645326100259,171.23415183,2717.2,2717.1,2.42087924]
[1645326100462,12.263,2716.1,2714.9,0.1839]
[1645326100657,12.263,2716.1,2714.9,0.1841]
[1645326100658,3.814,2715.0,2714.9,0.1841]
[1645326100858,7.523633,2714.4,2714.3,0.13373533]
[1645326101084,6.15316734,2714.4,2714.3,0.13373533]
[1645326101288,2.25316734,2714.4,2714.3,0.13373533]
[1645326101480,0.5,2715.2,2714.4,0.88742038]
[1645326101481,0.34468004,2714.6,2714.4,0.88742038]
[1645326101681,0.92221,2714.7,2714.4,0.88742038]
[1645326102785,0.96310085,2714.6,2714.4,0.88742038]
[1645326102988,0.531,2714.5,2714.4,0.88742038]
[1645326103182,0.34500085,2714.6,2714.4,0.88742038]
[1645326103383,0.34500085,2714.6,2714.5,0.3]
[1645326103589,0.87600085,2714.6,2714.5,0.3]
[1645326103783,0.30000085,2714.6,2714.5,0.3]
[1645326103988,1.46303108,2715.1,2714.5,0.3]
[1645326104194,1.46303108,2715.1,2714.6,0.3658]
[1645326104195,3.108e-05,2715.1,2714.6,0.3658]
[1645326104387,3.50096386,2715.2,2714.6,0.3658]
[1645326104584,3.50096386,2715.2,2714.7,0.00301124]
[1645326104826,6.386e-05,2715.2,2714.7,0.00301124]
[1645326105026,6.386e-05,2715.2,2714.8,0.3658]
[1645326105228,3.5,2716.0,2715.0,5.0]
[1645326105431,6.386e-05,2715.7,2715.4,0.3658]
[1645326105631,6.386e-05,2715.7,2715.6,5.3658]
[1645326105831,0.54357367,2716.7,2715.6,5.3658]
[1645326106026,0.01257367,2716.7,2715.6,9.1093922]
[1645326106227,0.01257367,2716.7,2716.1,0.3658]
[1645326106426,0.00096386,2716.6,2716.1,1.28726]
[1645326107027,0.00096386,2716.6,2716.3,0.00300946]
[1645326107227,0.00096386,2716.6,2716.3,0.92440816]
[1645326107429,0.00096386,2716.6,2716.4,1.07067707]
[1645326107830,0.531,2716.5,2716.4,1.07067707]
[1645326108026,0.481,2716.5,2716.4,1.07067707]
[1645326108231,0.56711616,2716.5,2716.4,1.07368642]
[1645326108685,0.86711616,2716.5,2716.4,1.07368642]
[1645326108885,1.081,2716.5,2716.4,1.07368642]
[1645326109081,1.081,2716.5,2716.4,1.07067707]
[1645326109481,1.08196386,2716.5,2716.4,1.07067707]
[1645326110183,1.16808002,2716.5,2716.4,1.07067707]
[1645326110583,1.16904388,2716.5,2716.4,1.07067707]
[1645326110786,1.08292772,2716.5,2716.4,1.07067707]
[1645326111582,1.08389158,2716.5,2716.4,1.07067707]
[1645326112727,1.1709716,2716.5,2716.4,1.07067707]
[1645326113728,1.17193546,2716.5,2716.4,1.07067707]
[1645326114133,1.17193546,2716.5,2716.4,0.53108534]
[1645326114532,1.17193546,2716.5,2716.3,1.17605834]
[1645326114835,0.5812,2716.4,2716.3,1.17605834]
[1645326115028,0.442,2716.4,2716.3,1.17605834]
[1645326115230,0.9218,2716.3,2715.9,1.192]
[1645326115433,5.442,2716.2,2715.8,0.01203998]
[1645326115631,11.45628416,2716.2,2715.8,0.01203998]
[1645326115836,1.22531616,2716.1,2715.8,0.01203998]
[1645326116097,1.0,2716.1,2715.8,0.01203998]
[1645326116291,0.6,2716.2,2715.9,1.01536282]
[1645326116491,0.3,2716.2,2715.9,1.01536282]
[1645326116889,0.00096386,2716.2,2715.9,1.01536282]
[1645326117689,0.92256386,2716.2,2715.9,1.01837267]
[1645326117893,0.92352772,2716.2,2715.9,1.01837267]
[1645326118290,2.29194702,2716.5,2715.9,1.01837267]
[1645326118291,1.0,2716.4,2715.9,1.01837267]
[1645326118694,0.3,2716.4,2715.9,1.01536282]
[1645326118890,6.386e-05,2716.2,2715.9,1.01536282]
[1645326119291,6.386e-05,2716.2,2716.0,0.00300974]
[1645326119491,0.92166386,2716.2,2716.0,0.00300974]
[1645326119929,0.92166386,2716.2,2715.9,1.01536282]
[1645326120127,0.30006386,2716.2,2715.9,1.01536282]
[1645326120328,6.386e-05,2716.2,2716.0,0.0030098]
[1645326121032,0.92262772,2716.2,2716.0,0.0030098]
[1645326121228,1.52262772,2716.2,2715.9,1.01536282]
[1645326121428,1.52262772,2716.2,2716.0,0.0030098]
[1645326122028,1.52359158,2716.2,2716.0,0.0030098]
[1645326122227,1.52359158,2716.2,2715.9,1.01536282]
[1645326122629,1.52359158,2716.2,2716.0,0.0030098]
[1645326122630,1.84343,2716.1,2716.0,0.0030098]
[1645326122831,3.37154616,2716.1,2715.9,1.01536282]
[1645326123029,2.92954616,2716.1,2715.9,1.01536282]
[1645326123486,2.84343,2716.1,2715.9,1.01536282]
[1645326123883,2.92954616,2716.1,2715.9,1.01536282]
[1645326124084,2.93051002,2716.1,2715.9,1.01536282]
[1645326124484,7.93051002,2716.1,2715.9,1.01536282]
[1645326124984,0.442,2716.0,2715.9,1.01536282]
[1645326125182,0.44296386,2716.0,2715.9,1.01536282]
[1645326125384,0.82908002,2716.0,2715.9,1.01536282]
[1645326125584,1.96467386,2716.0,2715.9,1.01536282]
[1645326125787,2.96467386,2716.0,2715.9,1.01536282]
[1645326126289,2.96563772,2716.0,2715.9,1.01536282]
[1645326126484,2.96563772,2716.0,2715.9,1.01396282]
[1645326127084,2.96660158,2716.0,2715.9,1.01396282]
[1645326127930,2.94923,2716.5,2716.1,7.0]
[1645326128130,0.442,2716.4,2716.1,7.0]
[1645326128332,0.52811616,2716.4,2716.1,7.0]
[1645326128531,0.08611616,2716.3,2716.1,7.0]
[1645326128835,0.442,2716.2,2716.1,7.0]
[1645326129232,0.82811616,2716.2,2716.1,7.0]
[1645326129431,0.82811616,2716.2,2716.1,1.4686]
[1645326130035,0.82811616,2716.2,2716.1,0.9166]
[1645326130535,0.82811616,2716.2,2715.9,1.0169652]
[1645326130735,0.92191,2716.1,2715.9,1.01396282]
[1645326130982,0.442,2716.0,2715.9,1.04918238]
[1645326131182,0.52811616,2716.0,2715.9,1.04918238]
[1645326131386,0.96731616,2716.0,2715.9,1.04918238]
[1645326131981,0.96651616,2716.0,2715.9,1.04618]
[1645326132380,0.82811616,2716.0,2715.9,1.04618]
[1645326132581,0.742,2716.0,2715.9,1.04618]
[1645326133179,0.82811616,2716.0,2715.9,1.04618]
[1645326133381,0.742,2716.0,2715.9,1.04618]
[1645326134381,0.82811616,2716.0,2715.9,1.04618]
[1645326134582,0.82811616,2716.0,2715.9,1.04521614]
[1645326134829,0.742,2716.0,2715.9,1.04521614]
[1645326137232,0.82811616,2716.0,2715.9,1.04521614]
[1645326143634,0.5,2716.3,2715.9,1.04521614]
[1645326143635,0.64378049,2716.4,2716.0,36.0]
[1645326143833,0.442,2716.5,2716.1,1.8429721]
[1645326144034,0.5,2716.9,2716.1,1.8429721]
[1645326144236,1.84658749,2716.6,2716.1,1.8429721]
[1645326144731,8.749e-05,2716.6,2716.1,2.7644921]
[1645326145400,0.942,2716.9,2716.1,2.7644921]
[1645326145401,0.5,2716.9,2716.1,2.7644921]
[1645326145531,0.5,2716.9,2716.3,0.89827507]
[1645326146178,0.92147,2716.7,2716.3,0.89827507]
[1645326146578,1.22147,2716.7,2716.3,0.89827507]
[1645326147477,0.08611616,2716.6,2716.3,0.89827507]
[1645326148879,2.22147,2716.7,2716.3,0.89827507]
[1645326149179,2.22501762,2716.7,2716.3,0.89827507]
[1645326149381,0.08611616,2716.6,2716.3,0.89827507]
[1645326150235,0.442,2716.5,2716.3,0.89827507]
[1645326150435,0.92169,2716.4,2716.3,0.89827507]
[1645326150635,1.36369,2716.4,2716.3,0.89827507]
[1645326150835,2.36369,2716.4,2716.3,0.89827507]
[1645326153137,2.31369,2716.4,2716.3,0.89827507]
[1645326153586,2.31369,2716.4,2716.3,0.84827507]
[1645326156184,2.39980616,2716.4,2716.3,0.84827507]
[1645326156387,2.86076603,2716.4,2716.3,0.84827507]
[1645326157639,2.94688219,2716.4,2716.3,0.84827507]
[1645326159041,2.86076603,2716.4,2716.3,0.84827507]
[1645326160443,2.31369,2716.4,2716.3,0.84827507]
[1645326160643,2.14338,2716.5,2716.3,0.84827507]
[1645326160844,2.58538,2716.5,2716.3,0.84827507]
[1645326161682,2.67149616,2716.5,2716.3,0.84827507]
[1645326161883,0.92169,2716.4,2716.3,0.84827507]
[1645326162284,1.92169,2716.4,2716.3,0.84827507]
[1645326162485,2.41689147,2716.5,2716.3,0.84827507]
[1645326162691,1.97489147,2716.5,2716.3,0.84827507]
[1645326163786,0.92169,2716.4,2716.3,0.84827507]
[1645326164185,2.00780616,2716.4,2716.3,0.84827507]
[1645326165028,1.95780616,2716.4,2716.3,0.84827507]
[1645326167433,0.2949378,2716.4,2716.3,0.84827507]
[1645326167634,0.20882164,2716.4,2716.3,0.84827507]
[1645326167839,1.88877531,2716.5,2716.3,0.84827507]
[1645326168235,1.97489147,2716.5,2716.3,0.84827507]
[1645326168882,0.92169,2716.4,2716.3,0.84827507]
[1645326169282,2.00780616,2716.4,2716.3,0.84827507]
[1645326169483,1.00780616,2716.4,2716.3,0.84827507]
[1645326169683,2.00780616,2716.4,2716.3,0.84827507]
[1645326171984,2.56172961,2716.4,2716.3,0.84827507]
[1645326172235,3.01450564,2717.5,2716.4,0.99991]
[1645326172441,0.19244147,2717.1,2716.4,0.99991]
[1645326172635,10.58611616,2717.2,2716.5,0.00228257]
[1645326172836,5.96235146,2717.2,2716.5,5.00228257]
[1645326173040,0.55366607,2717.5,2716.5,5.00228257]
[1645326173339,0.55366607,2717.5,2717.3,1.05976404]
[1645326174535,0.92117,2717.4,2717.3,1.05976404]
[1645326176087,7e-05,2717.4,2717.3,1.05976404]
[1645326176484,7e-05,2717.4,2717.0,1.84199]
[1645326176685,7e-05,2717.4,2717.0,2.76309]
[1645326176883,0.92124,2717.4,2716.8,3.94401]
[1645326177083,0.92124,2717.4,2716.8,3.02287]
[1645326177282,0.92124,2717.4,2716.8,1.1807]
[1645326177684,0.92124,2717.4,2717.3,0.98834218]
[1645326180036,0.7437469,2717.9,2717.4,0.9211]
[1645326180242,7.32,2718.0,2717.4,1.9391]
[1645326180442,8.72238957,2718.9,2717.7,5.0]
[1645326180443,3.5,2718.8,2717.7,5.0]
[1645326180637,7.32,2718.7,2717.7,5.0]
[1645326180838,7.32,2718.7,2717.7,6.2132]
[1645326181235,7.32,2718.7,2718.4,1.0035691]
[1645326181637,1.0,2718.6,2718.4,1.0035691]
[1645326181838,1.0,2718.6,2717.7,12.3802]
[1645326182137,0.92069,2718.5,2717.8,5.0]
[1645326182338,0.92069,2718.5,2717.9,3.5]
[1645326182938,0.92069,2718.5,2718.2,1.0684018]
[1645326183982,0.92332942,2718.5,2718.2,1.0684018]
[1645326184782,0.92069,2718.5,2718.2,1.0684018]
[1645326184983,0.42069,2718.5,2718.2,1.0684018]
[1645326185184,0.42423718,2718.5,2718.2,1.0684018]
[1645326185386,0.42423718,2718.5,2718.3,3.5]
[1645326185586,0.42423718,2718.5,2718.2,1.0684018]
[1645326185989,0.42069,2718.5,2718.2,1.0684018]
[1645326186388,0.42423718,2718.5,2718.2,1.0684018]
[1645326186591,0.42423718,2718.5,2718.3,3.5]
[1645326186789,0.00354718,2718.5,2718.3,3.5]
[1645326187337,7.32,2718.7,2718.3,3.5]
[1645326187634,0.00354716,2718.5,2718.3,3.5]
[1645326187936,0.00354716,2718.5,2718.2,1.0684018]
[1645326188540,7.32,2718.7,2718.2,1.0684018]
[1645326188735,0.00354718,2718.5,2718.2,1.0684018]
[1645326189634,7.32,2718.7,2718.2,1.0684018]
[1645326189836,0.00354718,2718.5,2718.2,1.0684018]
[1645326190836,7.32,2718.7,2718.3,3.5]
[1645326191091,0.00354718,2718.5,2718.2,1.0684018]
[1645326192085,7.32,2718.7,2718.2,1.0684018]
[1645326192287,0.00354718,2718.5,2718.2,1.0684018]
[1645326193287,1.08611616,2718.6,2718.2,1.0684018]
[1645326193488,0.00354718,2718.5,2718.2,1.0684018]
[1645326194490,1.08611616,2718.6,2718.2,1.0684018]
[1645326194735,0.00354718,2718.5,2718.2,1.0684018]
[1645326195640,7.32,2718.7,2718.3,5.0]
[1645326195838,0.08611616,2719.0,2718.5,5.0]
[1645326196037,7.32,2719.4,2718.5,5.0]
[1645326196941,0.9203,2719.7,2719.2,1.1270611]
[1645326197139,0.10705043,2719.6,2719.2,1.1270611]
[1645326197742,7.40611616,2720.4,2719.2,1.1270611]
[1645326198138,7.40611616,2720.4,2719.2,2.3455611]
[1645326198339,3.1006218,2720.2,2719.2,2.3455611]
[1645326198595,0.92018,2720.1,2719.2,2.3455611]
[1645326198798,1.92018,2720.1,2719.2,2.3455611]
[1645326198997,0.08611616,2720.0,2719.2,2.3455611]
[1645326199492,0.08611616,2720.0,2719.3,5.0]
[1645326199693,1.0,2720.3,2719.2,2.3455611]
[1645326199694,4.676e-05,2719.7,2719.5,5.0]
[1645326199893,4.676e-05,2719.7,2719.2,1.2185]
[1645326200491,5.34038,2720.3,2719.2,1.2185]